Cogmind - Beta 16.1 @@@ ROGUE MODE // 2026.04.08 @ 17:53:41 Player: Subject T. Change Result: Destroyed by G-34 Mercenary with Small Laser Performance ------------- Evolutions (1) 500 Regions Visited (2) 400 Robots Destroyed (21) 105 Value Destroyed (727) 727 Prototype IDs (2) 40 Alien Tech Used (0) 0 Bonus (0) 0 TOTAL SCORE: 1772 Bonus ------- None Cogmind --------- Core Integrity 0/400 Matter 300/300 Energy 100/100 System Corruption 0% Temperature Cool (6) Movement Core (350) Ox6 Location -9/Materials Parts ------- > --- POWER (2) -------- (None) > --- PROPULSION (2) --- (None) > --- UTILITY (3) ------ Large Storage Unit Structural Scanner > --- WEAPON (2) ------- (None) > --- INVENTORY (15) --- Wheel Terrain Scanner Seismic Detector Peak State ------------ > --- POWER ------------ Improved Ion Engine > --- PROPULSION ------- Wheel Wheel > --- UTILITY ---------- Large Storage Unit Structural Scanner Hardened Light Armor Plating > --- WEAPON ----------- Beam Rifle Light Assault Rifle > --- INVENTORY -------- Wheel Terrain Scanner Seismic Detector Mining Laser [Rating: 11] Favorites ----------- Power Light Ion Engine Engine Light Ion Engine Propulsion Light Treads Treads Light Treads Wheel Wheel Utility Terrain Scanner Device Terrain Scanner Storage Large Storage Unit Protection Hardened Light Armor Plating Weapon Light Assault Rifle Energy Gun Beam Rifle Ballistic Gun Light Assault Rifle Launcher Grenade Launcher Special Weapon Mining Laser Build | -11 -10 -9 ------- Run | Yrd Mat Mat Slots Evolved 2 | . . 2 Power 1 | . . 1 Propulsion . | . . . Utility 1 | . . 1 Weapon . | . . . Parts Attached 18 | 6 4 8 Power 3 | 1 1 1 Engine 3 | 1 1 1 Core . | . . . Reactor . | . . . Propulsion 4 | 2 . 2 Treads 2 | 2 . . Leg . | . . . Wheel 2 | . . 2 Hover . | . . . Flight . | . . . Utility 5 | 1 2 2 Device 2 | . 1 1 Storage 2 | 1 1 . Processor . | . . . Hackware . | . . . Protection 1 | . . 1 Artifact . | . . . Weapon 6 | 2 1 3 Energy Gun 1 | . . 1 Energy Cannon . | . . . Ballistic Gun 3 | 2 . 1 Ballistic Cannon . | . . . Launcher 1 | . 1 . Special Weapon 1 | . . 1 Impact Weapon . | . . . Slashing Weapon . | . . . Piercing Weapon . | . . . Special Melee Weapon . | . . . Unidentified Prototypes . | . . . Parts Lost 12 | . . 12 Power 2 | . . 2 Propulsion 4 | . . 4 Utility 1 | . . 1 Weapon 5 | . . 5 Highest Loss Streak 7 | . . 7 To Critical Strikes 1 | . . 1 Average Backups 4 | 1 4 4 Power . | . . . Propulsion 1 | 1 . 2 Utility . | . . 1 Weapon 2 | . 2 1 Tool/Special . | . . . Unused Backups 3 | . 1 2 Power . | . . . Propulsion 2 | . 1 1 Utility 1 | . . 1 Weapon . | . . . Tool/Special . | . . . Average Slot Usage (%) 88 | . 95 80 Engine 11 | . 14 9 Treads 19 | . 28 9 Wheel 4 | . . 8 Device 15 | . 9 20 Storage 12 | . 14 11 Energy Gun 2 | . . 4 Ballistic Gun 15 | . 18 12 Launcher 6 | . 9 3 Peak Build Rating 11 | 6 7 11 Average Rating 7 | 4 6 8 On Entrance 4 | . 6 7 Avg Prop Armor Cover (%) . | . . . Naked Turns . | . . . Heaviest Build 37 | 10 30 37 Greatest Support 40 | 40 40 40 Greatest Overweight (x) 11 | 3 . 11 Average Overweight (x) . | . . . Largest Inventory Capacity 15 | 8 15 15 Average Capacity 11 | 7 9 15 Most Carried 8 | 5 8 7 Average Carried 4 | 2 4 4 Final Capacity 15 | 8 15 15 Final Carried 8 | 2 8 3 Class Distribution -------------------- 100% | Mutant Dominant Class ---------------- Mutant | -10/Materials Mutant | -9/Materials Resources | -11 -10 -9 ----------- Run | Yrd Mat Mat Matter Collected 578 | 238 114 226 Remotely . | . . . Salvage Created 679 | . 140 539 Parts 38 | . 5 33 Haulers Intercepted . | . . . Recyclers Shooed . | . . . Parts Field Recycled . | . . . Retrieved Matter . | . . . Parts Self-Destructed . | . . . Prevented . | . . . Parts Restored . | . . . Kills | -11 -10 -9 ------- Run | Yrd Mat Mat Combat Hostiles Destroyed 20 | . 5 15 Guns 11 | . . 11 AOE 9 | . 5 4 Classes Destroyed 4 | . 1 3 Recycler 1 | . . 1 Swarmer 2 | . . 2 Grunt 15 | . 5 10 Sentry 3 | . . 3 Best Kill Streak 4 | . 2 4 Combat Bots Only 4 | . 2 4 Max Kills in Single Turn 2 | . 2 2 Gunslinging . | . . . Exploded 2 | . 2 1 Melee . | . . . Uniques/NPCs Destroyed . | . . . Combat | -11 -10 -9 -------- Run | Yrd Mat Mat Hostile Shots Fired 222 | . 9 213 Missed 73 | . 4 69 Hits 149 | . 5 144 Projectile 149 | . 5 144 Critical Strikes 3 | . . 3 Damage Taken 1703 | . 134 1569 Core 431 | . 28 403 Absorbed by Shields . | . . . Core Remaining (%) 94 | 100 88 . Volleys Fired 65 | . 5 60 Largest 2 | . 2 2 Hottest 76 | . 50 76 Shots Fired 120 | . 10 110 Gun 104 | . 5 99 Cannon . | . . . Launcher 16 | . 5 11 Special . | . . . Kinetic 84 | . 5 79 Thermal 20 | . . 20 Explosive 16 | . 5 11 Electromagnetic . | . . . Robot Hit Streak 11 | . 4 11 Robot Miss Streak 4 | . 4 3 Penetration Max . | . . . Secondary Targets . | . . . Shots Hit Robots 83 | . 5 78 Core Hits 48 | . 9 39 Critical Kills . | . . . Critical Parts Destroyed . | . . . Critical Strikes 2 | . . 2 Burn 2 | . . 2 Melee Attacks . | . . . Impact . | . . . Slashing . | . . . Piercing . | . . . Sneak Attacks . | . . . Combat Hostiles . | . . . Follow-up Attacks . | . . . Damage Inflicted 1297 | . 296 1001 Guns 678 | . 15 663 Cannons . | . . . Explosions 618 | . 281 337 Melee . | . . . Ramming 1 | . . 1 Kinetic 462 | . 15 447 Thermal 216 | . . 216 Explosive 618 | . 281 337 Electromagnetic . | . . . Impact . | . . . Slashing . | . . . Piercing . | . . . Highest Corruption . | . . . Average Corruption . | . . . Corruption Purged . | . . . Corruption Blocked . | . . . Overload Shots . | . . . Overflow Damage . | . . . Projectiles . | . . . Explosions . | . . . Melee . | . . . Knockbacks . | . . . Impact . | . . . Kinetic . | . . . Secondary . | . . . Self-Inflicted Damage 71 | . 19 52 Shots 4 | . 1 3 Rammed 1 | . . 1 Targets Rammed 1 | . . 1 Kicked . | . . . Crushed . | . . . Highest Temperature 293 | . 25 293 Average Temperature 76 | . 13 81 Received Heat Transfer 618 | . 36 582 Siege Activations . | . . . Martial Activations . | . . . Shielding Activations . | . . . Robots Disrupted . | . . . Combat Hostiles . | . . . Robots Corrupted . | . . . Combat Hostiles . | . . . Parts Fried . | . . . Impact Corruptions . | . . . Robots Melted . | . . . Combat Hostiles . | . . . Parts Melted 2 | . . 2 Heat Transferred 703 | . . 703 Parts Sabotaged . | . . . Parts Stolen . | . . . Parts Stripped . | . . . Power Chain Reactions . | . . . Alert | -11 -10 -9 ------- Run | Yrd Mat Mat Maximum Alert Level 1 | . . 1 Low Security (%) 98 | 100 100 97 Level 1 1 | . . 2 Level 2 . | . . . Level 3 . | . . . Level 4 . | . . . Level 5 . | . . . High Security . | . . . Max Security . | . . . Peak Influence 203 | . 143 203 Initial 35 | . . 35 Average 74 | . 45 126 Influence Increases 646 | . 218 428 Destroy 0b10 Robot/C 400 | . 100 300 Destroy 0b10 Robot/NC 5 | . . 5 Destroy Leader 100 | . 30 70 Successful Hack 23 | . 17 6 Disable Machine 45 | . 45 . Destroy Structure 73 | . 26 47 Influence Decreases 549 | . 132 417 Entered New Map 51 | . . 51 Time Decay 378 | . 132 246 Lost Part 120 | . . 120 Squads Dispatched 8 | . 3 5 Investigation 3 | . 2 1 Extermination . | . . . Reinforcement 5 | . 1 4 Assault . | . . . Garrison . | . . . Intercept . | . . . Searches Triggered . | . . . Construction Impeded 1 | . . 1 Haulers Reinforced . | . . . Active Scanning Responses . | . . . Cargo Convoy Interrupts . | . . . Stealth | -11 -10 -9 --------- Run | Yrd Mat Mat Distress Signals 3 | . . 3 Communications Jammed . | . . . Distress Signals . | . . . Times Spotted 28 | . 5 23 Peak Tracking Total 7 | . 2 7 Tactical Retreats . | . . . Traps | -11 -10 -9 ------- Run | Yrd Mat Mat Traps Triggered 1 | . 1 . Indirectly . | . . . Trap Hack Attempts . | . . . Triggered . | . . . Disarmed . | . . . Reprogrammed . | . . . Reused . | . . . Traps Extracted . | . . . Installed . | . . . Triggered . | . . . Machines | -11 -10 -9 ---------- Run | Yrd Mat Mat Machines Disabled 3 | . 3 . Max in Single Turn 2 | . 2 . Machines Repaired . | . . . Machines Dismantled . | . . . Machines Sabotaged . | . . . Overloaded Fab Kills . | . . . Hacking | -11 -10 -9 --------- Run | Yrd Mat Mat Machines Accessed 5 | . 3 2 Terminals 3 | . 2 1 Fabricators . | . . . Repair Stations . | . . . Recycling Units 2 | . 1 1 Scanalyzers . | . . . Garrison Access . | . . . Total Hacks 26 | . 16 10 Successful 15 | . 8 7 Failed 11 | . 8 3 Catastrophic . | . . . Database Lockouts . | . . . Manual 3 | . 1 2 Terminals 16 | . 9 7 Fabricators . | . . . Repair Stations . | . . . Recycling Units 10 | . 7 3 Scanalyzers . | . . . Garrison Access . | . . . Terminal Hacks 8 | . 3 5 Record 5 | . 1 4 Prototype ID Bank 1 | . 1 . Locate Traps 1 | . . 1 Hauler Manifests 1 | . 1 . Fabricator Hacks . | . . . Repair Station Hacks . | . . . Recycling Unit Hacks 7 | . 5 2 Recycle Component 2 | . 1 1 Report Inventory 2 | . 1 1 Retrieve Matter 2 | . 2 . Retrieve Components 1 | . 1 . Scanalyzer . | . . . Garrison Access Hacks . | . . . Unauthorized Hacks . | . . . Terminals . | . . . Fabricators . | . . . Repair Stations . | . . . Recycling Units . | . . . Scanalyzers . | . . . Garrison Access . | . . . Data Cores Recovered . | . . . Used . | . . . Hacking Detections 5 | . 3 2 Full Trace Events 5 | . 3 2 Feedback Events . | . . . Feedback Blocked . | . . . Robot Schematics Acquired . | . . . Robots Built . | . . . Authchips . | . . . Time . | . . . Total Robot Build Rating . | . . . Part Schematics Acquired . | . . . Parts Built . | . . . Authchips . | . . . Time . | . . . Total Part Build Rating . | . . . Part Studies Acquired . | . . . Parts Repaired . | . . . Time . | . . . Parts Recycled 2 | . 1 1 Recycled Matter . | . . . Retrieved Matter . | . . . Retrieved Components 3 | . 3 . Parts Scanalyzed . | . . . Part Schematics Acquired . | . . . Parts Damaged . | . . . Bothacking | -11 -10 -9 ------------ Run | Yrd Mat Mat Used RIF Installer . | . . . Robots Hacked . | . . . Non-combat . | . . . Combat . | . . . Robot Hacks Applied . | . . . Relay Couplers Released . | . . . Fabnet Peak Effective % . | . . . Robots Rewired . | . . . Allies Hacked . | . . . Hacks Repelled . | . . . Allies | -11 -10 -9 -------- Run | Yrd Mat Mat Total Allies . | . . . Largest Group . | . . . Highest-Rated Group . | . . . Highest-Rated Ally . | . . . Total Orders . | . . . Ally Attacks . | . . . Total Damage . | . . . Kills . | . . . Allies Corrupted . | . . . Allies Melted . | . . . Intel | -11 -10 -9 ------- Run | Yrd Mat Mat Active Infowar (turns) 955 | . 418 537 Terrain 884 | . 418 466 Structural 537 | . . 537 Robot Analysis Total . | . . . Derelict Logs Recovered . | . . . Drone Launches . | . . . Drone Recoveries . | . . . Exploration | -11 -10 -9 ------------- Run | Yrd Mat Mat Turns Passed 1260 | 144 579 537 Spaces Moved 711 | 91 342 278 Core 40 | 32 . 8 Treads 500 | 59 342 99 Legs . | . . . Wheels 171 | . . 171 Hover . | . . . Flight . | . . . Fastest Speed 50 | 50 160 95 Average Speed 147 | 144 160 132 Slowest Speed 600 | 200 160 600 Overloaded Moves . | . . . Propulsion Burnouts . | . . . Robots Hopped . | . . . Potential Cave-ins . | . . . Cave-ins Triggered . | . . . Exploration Rate (%) 23 | 6 47 18 Regions Visited 2 Branch Regions . Pre-discovered Areas . | . . . Known Exits Taken . | . . . Unknown Exits Taken 2 | 1 1 . Scrap Searched . | . . . Spaces Dug . | . . . Terrain Destroyed 78 | . 31 47 Melee . | . . . Projectile . | . . . AOE 78 | . 31 47 Terrain Rammed . | . . . Walls Destroyed . | . . . Machines Disabled . | . . . Actions | -11 -10 -9 --------- Run | Yrd Mat Mat Total 824 | 104 367 353 Wait 1 | . 1 . Move 709 | 90 341 278 Hop . | . . . Pick Up 22 | 8 11 3 Fast Attach . | . . . Attach 19 | 6 4 9 Detach 4 | . 2 2 Swap . | . . . Drop 3 | . 3 . Fire 65 | . 5 60 Melee . | . . . Ram 1 | . . 1 Kick . | . . . Crush . | . . . Escape Stasis . | . . . Rewire . | . . . Trap . | . . . Miscellaneous . | . . . Route ------- -11/Scrapyard -10/Materials (discovered 2 exits: *Mat x2) -9/Materials History --------- Turn | Location | Event 25 | -11/Scrapyard | Discovered new exit (range 15) 145 | -11/Scrapyard | Entered Materials 312 | -10/Materials | Discovered new exit (range 14) 329 | -10/Materials | Build established: Mutant 652 | -10/Materials | Discovered new exit (range 10) 724 | -10/Materials | Entered another Materials area 724 | -9/Materials | Evolved 2 slots: Power x1, Utility x1 921 | -9/Materials | Core integrity fell below 50% 998 | -9/Materials | Lost 4 parts (1p2n1w) 1205 | -9/Materials | Core integrity fell below 20% 1261 | -9/Materials | Destroyed by G-34 Mercenary with Small Laser Last Messages --------------- 01136_ U-05 Engineer builds a Wall. 01140_ U-05 Engineer lays Concrete. 01141_ K-01 Serf collects debris. 01141_ U-05 Engineer lays Concrete. 01143_ U-05 Engineer builds a Wall. 01175_ Y-45 Defender suffers critical hit (Burn). 01176_ Critical hit (Burn: +37). 01178_ Y-45 Defender suffers critical hit (Burn). 01180_ Y-45 Defender heat spikes uncontrollably. 01181_ Lgt. Treads melted. 01181_ Heat Sink melted. 01181_ Y-45 Defender destroyed. 01189_ Acquired Hrd. Light Armor Plating. 01206_ Wheel destroyed. 01215_ Lgt. Assault Rifle destroyed. 01216_ Beam Rifle destroyed. 01226_ Mining Laser destroyed. 01251_ M-13 Machinist repairs G-34 Mercenary. 01256_ Imp. Ion Engine destroyed. 01259_ Hrd. Light Armor Plating destroyed. Map ----- +----------------------------------------------------+ | ???????????????????????????????????? | | ???????????????????????????????????? | | ???????????????????????????????????? | | ???????????????????????????????????? | | ???????????????????????????????????? | | ???????????????????????????????????? | | ???????????????????????????????????? | | ???????????????????????????????????? | | ???????????????????????????????????? | | ???????????????????????????????????? | | ???????????????????????????????????? | | ???????????????????????????????????? | | ???????????????????????????????????? | | ???????????????????????????????????? | | ???????????????????????????????????? | | ?????????? ???????????????????????? | | ?????????? ??????????????????????? | | ??????????## ##?############???????? | | ??????????## ##?############???????? | | ??????????## ? ???????? | | ??????????## ??? ??????????? | | ???????##### ???????????? | | ???????#######+#### ##???????????? | | ???????## # ##???????????? | | ???????## # ##???????????? | | ???????## @ + ##???????????? | | ???????## m # ##????? ?????? | | ???????## gg"" "" # ##??? ???????? | | ???????## ""S"" # ### ???????? | | ???????## """" # ### ?????? | | ???????## # ## ????? | | ???????##########%# # ##/####+##?? | | ???????############ #### #### ##?? | | ???????????#???#### % ##?? | | ???????????????#?## ###? | | ????????????????### ## ? | | ?????????????"???## ###+###+## ? | | ???????? ?? ? ??## # ## ? | | ????????????? ???## # ## ? | | ??????????? ?????## %# # ? | | ??????????? ?????## # # ? | | ??????? ???## %# ## ? | | ???????###+###???## # ##?? | | ??????? + # ??? # # ? ?? ##?? | | ??????? # # ??? # # ?? ?? ??? | | ??????? + # ??" # % # ?? ??????? | | ??????? # # # # ? ??????? | | ???? ?? # ###+### # ??? ? ???? | | ??????? #^ ## ##?????????? | | ?? ???? #^^^^ ## ##?########? | +----------------------------------------------------+ Best States ------------- Heat Dissipation 28 Energy Generation 12 Energy Capacity 265 Matter Stores 300 Matter Capacity 300 Sight Range 16 Terrain Scan Range 14 Terrain Scan Density 10 Armor Coverage 150 Evasion (%) 50 Recoil Reduction 2 Item Schematics ----------------- None Robot Schematics ------------------ None Fabricated ------------ Nothing Repaired ---------- Nothing Studied --------- None Alien Tech Used ----------------- None Achievements -------------- For Emergencies Only Ghost 'Em I Have A Map? One Hack Too Far Resistances Are Futile Shopping List Uninvited Guest Challenges ------------ None Game ------ Seed PartitionTransportStick Manual? 0 Play Time 00:30:39 Cumulative 0.7 hours Start 2026.04.08 @ 15:09:52 End 2026.04.08 @ 17:53:41 Sessions 4 Manual Loads 0 Difficulty Rogue Special Mode None Game No. 2 Rogue 2 Adventurer 0 Explorer 0 Win Type - Total 0 Types 0/0/0/0/0/0/0/0/0/0 Lore% 0 Gallery% 2 Achievement% 2 Wizard Run 0 Options --------- Layout 0 ASCII 1 Keyboard 1 Movement Arrows Keybinds 0 Fullscreen 1 Font 18/X11 Map View 76x50 Zoom Use 8% Tactical HUD 1 Map Filters NONE Filters NONE Steam 1 RUN: 83333b53-5d2e-4f4e-8f7d-4a73285b4e6c